lending/lending_fUSD_20260209
["ID","MTS","AMOUNT","RATE_DAILY","PERIOD"]
[404854982,1770621074528,-500.0,0.00044356,120]
[404854983,1770621074538,-500.0,0.00044356,120]
[404854984,1770621074547,-563.84838954,0.00044356,120]
[404854985,1770621074556,-918.0,0.00044366,60]
[404854986,1770621074566,-512.07,0.00044369,120]
[404854987,1770621074575,-547.95,0.00044369,120]
[404854988,1770621074586,-511.46,0.00044369,120]
[404854989,1770621074595,-551.21196127,0.00044369,120]
[404854990,1770621074605,-500.0,0.00044369,120]
[404854991,1770621074614,-526.25,0.00044369,120]
[404854992,1770621074624,-300.0,0.0004437,3]
[404854993,1770621074634,-400.0,0.0004437,3]
[404854994,1770621074643,-400.0,0.0004437,3]
[404854995,1770621074653,-501.16630572,0.0004437,3]
[404854996,1770621074662,-702.72197926,0.0004437,3]
[404854997,1770621074672,-500.0,0.00044372,120]
[404854998,1770621074684,-500.0,0.00044372,120]
[404854999,1770621074694,-611.7,0.00044372,120]
[404855000,1770621074704,-613.02503673,0.00044372,120]
[404855001,1770621074714,-568.20555014,0.00044372,120]
[404855002,1770621074723,-300.0,0.00044373,5]
[404855003,1770621074734,-150.0,0.00044373,7]
[404855004,1770621074745,-36685.0,0.00044373,30]
[404855005,1770621074755,-150.0,0.000444,74]
[404855006,1770621074766,-151.8124,0.000444,2]
[404855007,1770621074776,-253.0,0.000444,46]
[404855008,1770621074787,-150.0,0.000444,10]
[404855009,1770621074798,-221.0,0.00044412,7]
[404855010,1770621074807,-263.92857411,0.0004442,10]
[404855011,1770621074817,-1395.74743014,0.0004442,10]
[404855012,1770621074826,-165.68970657,0.00044427,7]
[404855013,1770621074836,-1147.8,0.00044429,120]
[404855014,1770621074846,-728.8,0.00044429,120]
[404855015,1770621074856,-540.17,0.00044429,120]
[404855016,1770621074866,-1319.22,0.00044429,120]
[404855017,1770621074877,-290.51885735,0.0004443,7]
[404855018,1770621074887,-290.51885735,0.0004443,7]
[404855019,1770621074897,-623.18474102,0.00044436,120]
[404855020,1770621074907,-1147.8,0.00044437,120]
[404855021,1770621074916,-1147.8,0.00044437,120]
[404855022,1770621074926,-1147.8,0.00044437,120]
[404855023,1770621074935,-1147.8,0.00044437,120]
[404855024,1770621074945,-1147.8,0.00044437,120]
[404855025,1770621074955,-1147.97116356,0.00044437,120]
[404855026,1770621074964,-728.8,0.00044437,120]
[404855027,1770621074974,-728.8,0.00044437,120]
[404855028,1770621074985,-728.8,0.00044437,120]
[404855029,1770621074995,-728.8,0.00044437,120]
[404855030,1770621075005,-728.8,0.00044437,120]
[404855031,1770621075020,-728.80291264,0.00044437,120]
[404855032,1770621075032,-540.17,0.00044437,120]
[404855033,1770621075045,-540.17,0.00044437,120]
[404855034,1770621075055,-540.17,0.00044437,120]
[404855035,1770621075065,-540.17,0.00044437,120]
[404855036,1770621075075,-540.17,0.00044437,120]
[404855037,1770621075088,-540.37141254,0.00044437,120]
[404855038,1770621075098,-1319.22,0.00044437,120]
[404855039,1770621075108,-1319.22,0.00044437,120]
[404855040,1770621075119,-1319.22,0.00044437,120]
[404855041,1770621075130,-1319.22,0.00044437,120]
[404855042,1770621075140,-1319.22,0.00044437,120]
[404855043,1770621075150,-1319.28865232,0.00044437,120]
[404855044,1770621075160,-836.92,0.00044437,120]
[404855045,1770621075170,-836.92,0.00044437,120]
[404855046,1770621075180,-836.92,0.00044437,120]
[404855047,1770621075191,-836.92,0.00044437,120]
[404855048,1770621075201,-836.92,0.00044437,120]
[404855049,1770621075211,-836.92,0.00044437,120]
[404855050,1770621075220,-837.06284361,0.00044437,120]
[404855051,1770621075233,-151.0,0.00044437,120]
[404855052,1770621075242,-1010.41077862,0.00044438,120]
[404855053,1770621075252,-150.0,0.00044438,30]
[404855054,1770621075262,-150.0,0.00044438,30]
[404855055,1770621075271,-150.0,0.00044438,30]
[404855056,1770621075281,-150.0,0.00044438,30]
[404855057,1770621075291,-150.0,0.00044438,30]
[404855058,1770621075300,-150.00000001,0.00044438,30]
[404855059,1770621075310,-150.0,0.00044438,30]
[404855060,1770621075319,-1763.93,0.00044439,120]
[404855061,1770621075329,-1763.93,0.00044439,120]
[404855062,1770621075339,-1763.93,0.00044439,120]
[404855063,1770621075349,-1763.93,0.00044439,120]
[404855064,1770621075359,-1763.93,0.00044439,120]
[404855065,1770621075369,-1763.93,0.00044439,120]
[404855066,1770621075379,-1763.93,0.00044439,120]
[404855067,1770621075389,-1763.93,0.00044439,120]
[404855068,1770621075398,-1763.93,0.00044439,120]
[404855069,1770621075408,-1763.93,0.00044439,120]
[404855070,1770621075417,-1763.93,0.00044439,120]
[404855071,1770621075427,-1763.93,0.00044439,120]
[404855072,1770621075436,-1763.93,0.00044439,120]
[404855073,1770621075446,-1763.93,0.00044439,120]
[404855074,1770621075455,-1763.986622,0.00044439,120]
[404855075,1770621075471,-500.0,0.00044439,120]
[404855076,1770621075480,-500.0,0.00044439,120]
[404855077,1770621075490,-500.0,0.00044439,120]
[404855078,1770621075500,-500.0,0.00044439,120]
[404855079,1770621075510,-510.50973915,0.00044439,120]
[404855080,1770621075519,-506.36140477,0.00044439,120]
[404855081,1770621075529,-500.0,0.00044439,120]
[404855082,1770621075539,-500.0,0.00044439,120]
[404855083,1770621075549,-500.0,0.00044439,120]
[404855084,1770621075558,-500.0,0.00044439,120]
[404855085,1770621075569,-500.0,0.00044439,120]
[404855086,1770621075578,-500.0,0.00044439,120]
[404855087,1770621075588,-500.0,0.00044439,120]
[404855088,1770621075600,-500.0,0.00044439,120]
[404855089,1770621075610,-500.0,0.00044439,120]
[404855090,1770621075619,-524.53,0.00044439,120]
[404855091,1770621075629,-524.53,0.00044439,120]
[404855092,1770621075639,-524.53,0.00044439,120]
[404855093,1770621075649,-524.53,0.00044439,120]
[404855094,1770621075659,-524.53,0.00044439,120]
[404855095,1770621075668,-524.53,0.00044439,120]
[404855096,1770621075677,-524.53,0.00044439,120]
[404855097,1770621075687,-524.53,0.00044439,120]
[404855098,1770621075696,-524.53,0.00044439,120]
[404855099,1770621075705,-524.53,0.00044439,120]
[404855100,1770621075714,-524.53,0.00044439,120]
[404855101,1770621075724,-524.53,0.00044439,120]
[404855102,1770621075734,-524.53,0.00044439,120]
[404855103,1770621075744,-524.53,0.00044439,120]
[404855104,1770621075754,-524.61294898,0.00044439,120]
[404855105,1770621075763,-512.07,0.00044439,120]
[404855106,1770621075806,-512.07,0.00044439,120]
[404855107,1770621075816,-512.07,0.00044439,120]
[404855108,1770621075826,-512.07,0.00044439,120]
[404855109,1770621075836,-512.07,0.00044439,120]
[404855110,1770621075846,-512.07,0.00044439,120]
[404855111,1770621075856,-512.07,0.00044439,120]
[404855112,1770621075866,-512.07,0.00044439,120]
[404855113,1770621075875,-512.07,0.00044439,120]
[404855114,1770621075885,-512.07,0.00044439,120]
[404855115,1770621075895,-512.07,0.00044439,120]
[404855116,1770621075906,-512.07,0.00044439,120]
[404855117,1770621075916,-512.07,0.00044439,120]
[404855118,1770621075925,-512.26647671,0.00044439,120]
[404855119,1770621075935,-500.0,0.00044439,120]
[404855120,1770621075944,-500.0,0.00044439,120]
[404855121,1770621075954,-500.0,0.00044439,120]
[404855122,1770621075963,-500.0,0.00044439,120]
[404855123,1770621075972,-500.0,0.00044439,120]
[404855124,1770621075981,-500.0,0.00044439,120]
[404855125,1770621075990,-500.0,0.00044439,120]
[404855126,1770621076000,-500.0,0.00044439,120]
[404855127,1770621076009,-500.0,0.00044439,120]
[404855128,1770621076021,-500.0,0.00044439,120]
[404855129,1770621076031,-547.95,0.00044439,120]
[404855130,1770621076041,-547.95,0.00044439,120]
[404855131,1770621076050,-547.95,0.00044439,120]
[404855132,1770621076061,-547.95,0.00044439,120]
[404855133,1770621076070,-547.95,0.00044439,120]
[404855134,1770621076079,-547.95,0.00044439,120]
[404855135,1770621076091,-547.95,0.00044439,120]
[404855136,1770621076101,-547.95,0.00044439,120]
[404855137,1770621076111,-547.95,0.00044439,120]
[404855138,1770621076121,-547.95,0.00044439,120]
[404855139,1770621076131,-547.95,0.00044439,120]
[404855140,1770621076140,-500.0,0.00044439,60]
[404855141,1770621076150,-547.95,0.00044439,120]
[404855142,1770621076159,-500.0,0.00044439,60]
[404855143,1770621076168,-547.95,0.00044439,120]
[404855144,1770621076178,-500.0,0.00044439,60]
[404855145,1770621076187,-547.96500983,0.00044439,120]
[404855146,1770621076197,-500.0,0.00044439,60]
[404855147,1770621076206,-500.0,0.00044439,60]
[404855148,1770621076216,-611.7,0.00044439,120]
[404855149,1770621076226,-346.53674018,0.00044439,60]
[404855150,1770621076236,-611.7,0.00044439,120]
[404855151,1770621076246,-611.7,0.00044439,120]
[404855152,1770621076255,-611.7,0.00044439,120]
[404855153,1770621076265,-611.7,0.00044439,120]
[404855154,1770621076275,-611.7,0.00044439,120]
[404855155,1770621076285,-611.7,0.00044439,120]
[404855156,1770621076295,-611.7,0.00044439,120]
[404855157,1770621076305,-611.7,0.00044439,120]
[404855158,1770621076314,-611.7,0.00044439,120]
[404855159,1770621076324,-611.7,0.00044439,120]
[404855160,1770621076333,-611.7,0.00044439,120]
[404855161,1770621076343,-611.7,0.00044439,120]
[404855162,1770621076352,-611.93092342,0.00044439,120]
[404855163,1770621076362,-500.0,0.00044439,120]
[404855164,1770621076372,-500.0,0.00044439,120]
[404855165,1770621076382,-500.0,0.00044439,120]
[404855166,1770621076393,-500.0,0.00044439,120]
[404855167,1770621076403,-500.0,0.00044439,120]
[404855168,1770621076413,-500.0,0.00044439,120]
[404855169,1770621076423,-500.0,0.00044439,120]
[404855170,1770621076432,-500.0,0.00044439,120]
[404855171,1770621076442,-500.0,0.00044439,120]
[404855172,1770621076452,-500.0,0.00044439,120]
[404855173,1770621076462,-500.0,0.00044439,120]
[404855174,1770621076471,-567.63,0.00044439,120]
[404855175,1770621076481,-500.0,0.00044439,120]
[404855176,1770621076491,-500.0,0.00044439,120]
[404855177,1770621076500,-500.0,0.00044439,120]
[404855178,1770621076510,-500.0,0.00044439,120]
[404855179,1770621076520,-500.0,0.00044439,120]
[404855180,1770621076529,-500.0,0.00044439,120]
[404855181,1770621076539,-500.0,0.00044439,120]
[404855182,1770621076550,-446.27737653,0.00044439,120]
[404855183,1770621076560,-500.0,0.00044439,120]
[404855184,1770621076569,-500.0,0.00044439,120]
[404855185,1770621076578,-500.0,0.00044439,120]
[404855186,1770621076587,-467.57371895,0.00044439,120]
[404855187,1770621076597,-500.0,0.00044439,120]
[404855188,1770621076606,-500.0,0.00044439,120]
[404855189,1770621076616,-500.0,0.00044439,120]
[404855190,1770621076626,-500.0,0.00044439,120]
[404855191,1770621076635,-500.0,0.00044439,120]
[404855192,1770621076644,-500.0,0.00044439,120]
[404855193,1770621076662,-500.0,0.00044439,120]
[404855194,1770621076671,-500.0,0.00044439,120]
[404855195,1770621076680,-500.0,0.00044439,120]
[404855196,1770621076689,-500.0,0.00044439,120]
[404855197,1770621076698,-644.9177427,0.00044439,120]
[404855198,1770621076708,-511.46,0.00044439,120]
[404855199,1770621076720,-511.46,0.00044439,120]
[404855200,1770621076737,-511.46,0.00044439,120]
[404855201,1770621076747,-511.46,0.00044439,120]
[404855202,1770621076758,-511.46,0.00044439,120]
[404855203,1770621076771,-511.46,0.00044439,120]
[404855204,1770621076781,-511.46,0.00044439,120]
[404855205,1770621076791,-511.46,0.00044439,120]
[404855206,1770621076801,-511.46,0.00044439,120]
[404855207,1770621076810,-511.46,0.00044439,120]
[404855208,1770621076820,-511.46,0.00044439,120]
[404855209,1770621076829,-511.46,0.00044439,120]
[404855210,1770621076839,-511.46,0.00044439,120]
[404855211,1770621076848,-511.57857873,0.00044439,120]
[404855212,1770621076858,-285.582123,0.00044439,120]
[404855213,1770621076868,-500.0,0.00044439,120]
[404855214,1770621076877,-500.0,0.00044439,120]
[404855215,1770621076887,-500.0,0.00044439,120]
[404855216,1770621076896,-500.0,0.00044439,120]
[404855217,1770621076905,-500.0,0.00044439,120]
[404855218,1770621076915,-500.0,0.00044439,120]
[404855219,1770621076924,-500.0,0.00044439,120]
[404855220,1770621076934,-500.0,0.00044439,120]
[404855221,1770621076943,-500.0,0.00044439,120]
[404855222,1770621076953,-500.0,0.00044439,120]
[404855223,1770621076963,-311.41010535,0.00044439,120]
[404855224,1770621076972,-11.25197476,0.00044439,120]
[404855230,1770621431287,2010.462839,0.0003561,120]
[404855231,1770621483888,3000.0,0.0003561,30]
[404855232,1770621575912,177.0,0.00035616,30]
[404855235,1770621908263,10000.0,0.00018,2]
[404855236,1770621908289,10000.0,0.00018,2]
[404855237,1770621908316,10000.0,0.00018,2]
[404855238,1770621908341,10000.0,0.00018,2]
[404855239,1770621908366,10000.0,0.00018,2]
[404855240,1770621908390,10000.0,0.00018,2]
[404855241,1770621908415,10000.0,0.00018,2]
[404855242,1770621908439,10000.0,0.00018,2]
[404855243,1770621908462,10000.0,0.00018,2]
[404855244,1770621908487,10000.0,0.00018,2]
[404855245,1770621908510,10000.0,0.00018,2]
[404855246,1770621908849,10000.0,0.00018,2]
[404855247,1770621908879,10000.0,0.00018,2]
[404855248,1770621908901,10000.0,0.00018,2]
[404855249,1770621908924,10000.0,0.00018,2]
[404855250,1770621908945,10000.0,0.00018,2]
[404855251,1770621908967,10000.0,0.00018,2]
[404855252,1770621908988,10000.0,0.00018,2]
[404855253,1770621909012,10000.0,0.00018,2]
[404855254,1770621909034,10000.0,0.00018,2]
[404855255,1770621909057,10000.0,0.00018,2]
[404855256,1770621909087,10000.0,0.00018,2]
[404855257,1770621909110,10000.0,0.00018,2]
[404855258,1770621909133,10000.0,0.00018,2]
[404855259,1770621909157,10000.0,0.00018,2]
[404855260,1770621909179,10000.0,0.00018,2]
[404855261,1770621909201,10000.0,0.00018,2]
[404855262,1770621909224,10000.0,0.00018,2]
[404855263,1770621909246,10000.0,0.00018,2]
[404855264,1770621909268,10000.0,0.00018,2]
[404855265,1770621909292,10000.0,0.00018,2]
[404855266,1770621909316,10000.0,0.00018,2]
[404855267,1770621909338,10000.0,0.00018,2]
[404855268,1770621909362,10000.0,0.00018,2]
[404855269,1770621909386,10000.0,0.00018,2]
[404855270,1770621909409,10000.0,0.00018,2]
[404855271,1770621912767,201.0,0.00017,2]
[404855288,1770622169104,-5344.32857,0.00018,2]
[404855299,1770622231574,-1612.39440711,0.00018,2]
[404855300,1770622231585,-2072.44626956,0.00018,2]
[404855301,1770622231598,-3037.07724405,0.00018,2]
[404855302,1770622231649,-23433.07561304,0.00018,2]
[404855303,1770622231661,-1159.94357071,0.00018,2]
[404855304,1770622231672,-871.14161176,0.00018,2]
[404855305,1770622231683,-9919.01815241,0.00018,2]
[404855306,1770622231779,-427.14014437,0.00018,2]
[404855307,1770622231791,-612.78854042,0.00018,2]
[404855420,1770622237652,-1172.96774003,0.00018,2]
[404855421,1770622237664,-873.39,0.00018,2]
[404855422,1770622237771,-594.93643303,0.00018,2]
[404855423,1770622237784,-150.0,0.00027999,2]
[404855424,1770622237795,-174.44356697,0.00028,2]
[404855425,1770622237830,-280.241952,0.00028,2]
[404855438,1770622239763,-301.912,0.00028,2]
[404855439,1770622239971,-65984.23308041,0.00028,2]
[404855440,1770622240103,-12738.01956471,0.00028,2]
[404855441,1770622240112,-6825.23703721,0.0003013,2]
[404855442,1770622240123,-510.0,0.00032616,2]
[404855443,1770622240132,-150.0,0.00035999,2]
[404855444,1770622240142,-2653.38589178,0.0003758,2]
[404855445,1770622240153,-2500.0,0.000397,2]
[404855446,1770622240162,-10153.6491,0.000397,2]
[404855447,1770622240172,-767.37770656,0.000397,2]
[404855448,1770622240182,-151.0,0.00039776,2]
[404855449,1770622240193,-151.0,0.00039776,2]
[404855450,1770622240202,-151.0,0.00039776,2]
[404855451,1770622240213,-151.0,0.00039776,2]
[404855452,1770622240224,-151.0,0.00039776,2]
[404855453,1770622240234,-151.0,0.00039776,2]
[404855455,1770622240243,-151.0,0.00039776,2]
[404855457,1770622240253,-967.0,0.00039781,120]
[404855458,1770622240262,-1338.915,0.00039799,56]
[404855459,1770622240273,-1316.12626124,0.00039799,30]
[404855460,1770622240284,-300.0,0.00039799,10]
[404855461,1770622240295,-175.55801773,0.00039799,56]
[404855462,1770622240305,-500.0,0.00039799,31]
[404855463,1770622240315,-500.0,0.00039799,31]
[404855464,1770622240325,-178.24575804,0.00039799,31]
[404855465,1770622240336,-209.05100329,0.00039799,31]
[404855466,1770622240346,-500.0,0.00039799,31]
[404855467,1770622240355,-518.86432282,0.00039799,31]
[404855468,1770622240370,-269.79,0.000398,30]
[404855469,1770622240380,-2769.82,0.000398,14]
[404855470,1770622240390,-487.0,0.000398,2]
[404855471,1770622240401,-487.0,0.000398,2]
[404855472,1770622240411,-487.0,0.000398,2]
[404855473,1770622240422,-487.0,0.000398,2]
[404855474,1770622240431,-487.0,0.000398,2]
[404855475,1770622240443,-487.0,0.000398,2]
[404855476,1770622240453,-487.0,0.000398,2]
[404855477,1770622240463,-739.75,0.000398,2]
[404855478,1770622240471,-487.0,0.000398,2]
[404855479,1770622240481,-487.0,0.000398,2]
[404855480,1770622240491,-797.51,0.000398,2]
[404855481,1770622240500,-487.0,0.000398,2]
[404855482,1770622240509,-736.18,0.000398,2]
[404855483,1770622240519,-33312.6077,0.000399,2]
[404855484,1770622240528,-1000.0,0.000399,2]
[404855485,1770622240538,-500.0,0.00039988,2]
[404855486,1770622240548,-4038.2376617,0.00040144,2]
[404855487,1770622240558,-767.37770656,0.00040363,28]
[404855488,1770622240567,-2175.44,0.00040373,2]
[404855489,1770622240577,-1000.0,0.00040488,2]
[404855490,1770622240587,-221.95496128,0.00040548,2]
[404855491,1770622240597,-767.37770656,0.00041026,28]
[404855492,1770622240607,-166.66,0.00041248,30]
[404855493,1770622240617,-198.81,0.00041392,2]
[404855494,1770622240627,-4544.0,0.00041401,7]
[404855495,1770622240637,-767.37770656,0.00041689,28]
[404855496,1770622240646,-1064.84,0.00042,60]
[404855497,1770622240656,-166.66,0.00042117,30]
[404855498,1770622240665,-500.0,0.00042117,30]
[404855499,1770622240675,-767.37770656,0.00042352,28]
[404855500,1770622240684,-183.04,0.0004255,2]
[404855501,1770622240694,-277.0,0.000427,60]
[404855502,1770622240704,-2769.82,0.000428,14]
[404855503,1770622240713,-200.0,0.00042842,2]
[404855504,1770622240723,-166.66,0.00042985,30]
[404855505,1770622240733,-150.55,0.00042999,10]
[404855506,1770622240742,-227964.02329408,0.00043,120]
[404855507,1770622240752,-767.37770656,0.00043015,28]
[404855508,1770622240762,-546.50732968,0.00043068,2]
[404855509,1770622240771,-1682.1727,0.00043255,2]
[404855510,1770622240780,-2000.0,0.000433,2]
[404855511,1770622240792,-500.0,0.00043354,120]
[404855512,1770622240809,-500.0,0.00043354,120]
[404855513,1770622240825,-503.05982052,0.00043354,120]
[404855514,1770622240840,-1272.0,0.00043395,2]
[404855515,1770622240849,-1206.0,0.00043395,2]
[404855516,1770622240861,-918.0,0.00043395,2]
[404855517,1770622240875,-1412.0,0.00043395,2]
[404855518,1770622240894,-3485.0,0.00043395,2]
[404855519,1770622240913,-569.76451739,0.000434,120]
[404855520,1770622240925,-269.79,0.000434,30]
[404855521,1770622240936,-247.56,0.00043408,2]
[404855522,1770622240947,-150.0,0.000435,20]
[404855523,1770622240958,-222.0,0.00043639,120]
[404855524,1770622240968,-52580.98662717,0.00043666,120]
[404855525,1770622240979,-767.37770656,0.00043678,28]
[404855526,1770622240987,-462.0,0.000438,30]
[404855527,1770622240998,-1999.0,0.00043835,120]
[404855528,1770622241009,-166.66,0.00043853,30]
[404855529,1770622241018,-1010.73446972,0.00043962,120]
[404855530,1770622241028,-272.81888533,0.00043973,10]
[404855531,1770622241039,-500.0,0.00043973,10]
[404855532,1770622241049,-500.0,0.00043973,10]
[404855533,1770622241060,-503.94742749,0.00043973,10]
[404855534,1770622241071,-503.61284927,0.00043973,10]
[404855535,1770622241081,-500.0,0.00043973,10]
[404855536,1770622241090,-500.0,0.00043973,7]
[404855537,1770622241101,-641.00854311,0.00043973,10]
[404855538,1770622241110,-500.95442163,0.00043973,10]
[404855539,1770622241121,-500.0,0.00043973,10]
[404855540,1770622241131,-500.0,0.00043973,10]
[404855541,1770622241140,-500.0,0.00043973,10]
[404855542,1770622241150,-500.0,0.00043973,10]
[404855543,1770622241159,-500.0,0.00043973,10]
[404855544,1770622241168,-594.32872347,0.00043973,10]
[404855545,1770622241177,-825.65553327,0.00044,30]
[404855546,1770622241187,-567.03170192,0.00044,38]
[404855547,1770622241196,-552.66,0.000441,2]
[404855548,1770622241207,-192.5650804,0.00044109,120]
[404855549,1770622241217,-2000.0,0.00044233,3]
[404855550,1770622241228,-2000.0,0.00044233,3]
[404855551,1770622241238,-10000.0,0.00044256,2]
[404855552,1770622241247,-11364.80471167,0.00044256,2]
[404855553,1770622241257,-245.4684463,0.00044259,2]
[404855554,1770622241267,-767.37770656,0.00044341,28]
[404855555,1770622241277,-290.51885736,0.00044346,7]
[404855556,1770622241288,-500.0,0.00044356,120]
[404855557,1770622241298,-501.63748011,0.00044356,120]
[404855558,1770622241308,-500.0,0.00044356,120]
[404855559,1770622241317,-176.1819659,0.00044356,120]
[404855560,1770622241327,-500.0,0.00044356,120]
[404855561,1770622241338,-500.0,0.00044356,120]
[404855562,1770622241348,-500.0,0.00044356,120]
[404855563,1770622241357,-568.88359519,0.00044356,120]
[404855564,1770622241368,-522.84555042,0.00044356,120]
[404855565,1770622241381,-530.4103202,0.00044356,120]
[404855566,1770622241391,-509.16747852,0.00044356,120]
[404855567,1770622241401,-500.0,0.00044356,120]
[404855568,1770622241414,-500.0,0.00044356,120]
[404855569,1770622241424,-500.0,0.00044356,120]
[404855570,1770622241434,-514.31756602,0.00044356,120]
[404855571,1770622241445,-500.0,0.00044356,120]
[404855572,1770622241454,-500.0,0.00044356,120]
[404855573,1770622241463,-500.0,0.00044356,120]
[404855574,1770622241472,-500.0,0.00044356,120]
[404855575,1770622241482,-500.0,0.00044356,120]
[404855576,1770622241491,-500.0,0.00044356,120]
[404855577,1770622241501,-277.03504819,0.00044356,120]
[404855578,1770622241510,-500.0,0.00044356,120]
[404855579,1770622241519,-543.15301475,0.00044356,120]
[404855580,1770622241528,-500.0,0.00044356,120]
[404855581,1770622241538,-500.0,0.00044356,120]
[404855582,1770622241547,-500.0,0.00044356,120]
[404855583,1770622241556,-516.43545098,0.00044356,120]
[404855584,1770622241565,-500.0,0.00044356,30]
[404855585,1770622241574,-500.0,0.00044356,30]
[404855586,1770622241583,-543.34158023,0.00044356,30]
[404855587,1770622241592,-504.46112921,0.00044356,120]
[404855588,1770622241602,-500.0,0.00044356,120]
[404855589,1770622241613,-506.90029324,0.00044356,120]
[404855590,1770622241622,-1000.0,0.00044356,120]
[404855591,1770622241631,-1000.0,0.00044356,120]
[404855592,1770622241641,-1000.0,0.00044356,120]
[404855593,1770622241651,-1000.0,0.00044356,120]
[404855594,1770622241660,-1000.0,0.00044356,120]
[404855595,1770622241670,-1000.0,0.00044356,120]
[404855596,1770622241684,-1000.0,0.00044356,120]
[404855597,1770622241693,-604.69705875,0.00044356,120]
[404855598,1770622241702,-500.0,0.00044356,120]
[404855599,1770622241712,-500.0,0.00044356,120]
[404855600,1770622241721,-500.0,0.00044356,120]
[404855601,1770622241730,-500.0,0.00044356,120]
[404855602,1770622241740,-500.0,0.00044356,120]
[404855603,1770622241749,-500.0,0.00044356,120]
[404855604,1770622241758,-500.0,0.00044356,120]
[404855605,1770622241767,-500.0,0.00044356,120]
[404855606,1770622241776,-500.0,0.00044356,120]
[404855607,1770622241786,-500.0,0.00044356,120]
[404855608,1770622241795,-500.0,0.00044356,120]
[404855609,1770622241804,-500.0,0.00044356,120]
[404855610,1770622241814,-632.52873583,0.00044356,120]
[404855611,1770622241823,-500.0,0.00044356,120]
[404855612,1770622241831,-500.0,0.00044356,120]
[404855613,1770622241841,-500.0,0.00044356,120]
[404855614,1770622241850,-500.0,0.00044356,120]
[404855615,1770622241860,-500.0,0.00044356,120]
[404855616,1770622241869,-500.0,0.00044356,120]
[404855617,1770622241879,-500.0,0.00044356,120]
[404855618,1770622241888,-500.0,0.00044356,120]
[404855619,1770622241897,-500.0,0.00044356,120]
[404855620,1770622241907,-500.0,0.00044356,120]
[404855621,1770622241916,-500.0,0.00044356,120]
[404855622,1770622241928,-500.0,0.00044356,120]
[404855623,1770622241937,-500.0,0.00044356,120]
[404855624,1770622241948,-500.0,0.00044356,120]
[404855625,1770622241958,-500.0,0.00044356,120]
[404855626,1770622241969,-500.0,0.00044356,120]
[404855627,1770622241979,-500.0,0.00044356,120]
[404855628,1770622241989,-500.0,0.00044356,120]
[404855629,1770622241999,-500.0,0.00044356,120]
[404855630,1770622242009,-500.0,0.00044356,120]
[404855631,1770622242019,-500.0,0.00044356,120]
[404855632,1770622242029,-500.0,0.00044356,120]
[404855633,1770622242040,-500.0,0.00044356,120]
[404855634,1770622242050,-500.0,0.00044356,120]
[404855635,1770622242059,-500.0,0.00044356,120]
[404855636,1770622242068,-348.94076534,0.00044356,120]
[404855637,1770622242077,-500.0,0.00044356,120]
[404855638,1770622242086,-500.0,0.00044356,120]
[404855639,1770622242095,-500.0,0.00044356,120]
[404855640,1770622242104,-500.0,0.00044356,120]